bitfinex-derivatives/quotes_SOLF0:USTF0_20260204
["timestamp","ask_amount","ask_price","bid_price","bid_amount"]
[1770184849037,8.53039491,97.0,96.917,4.85127825]
[1770184849737,8.53039491,97.02,96.929,4.87344842]
[1770184850537,8.53039491,97.02,96.93,82.34]
[1770184850538,8.53039491,97.0,96.93,82.34]
[1770184851844,8.53039491,96.98,96.93,82.34]
[1770184852138,8.53039491,96.98,96.899,4.9235833]
[1770184852334,8.53039491,97.02,96.859,4.9235833]
[1770184852335,8.53039491,96.94,96.859,4.9235833]
[1770184853142,9.2952,96.954,96.859,4.9235833]
[1770184853342,9.2952,96.954,96.861,4.91704412]
[1770184854739,8.53039491,96.96,96.861,4.91704412]
[1770184854943,8.53039491,96.96,96.862,411.6]
[1770184855144,8.53039491,96.96,96.863,4.87380038]
[1770184855349,8.53039491,96.96,96.865,4.87380038]
[1770184855748,8.53039491,96.96,96.869,4.87380038]
[1770184862844,8.53039491,96.96,96.871,4.92796774]
[1770184863645,8.53039491,96.96,96.873,4.9808657]
[1770184864747,8.53039491,96.96,96.878,4.9808657]
[1770184865754,8.0037227,96.959,96.878,4.9808657]
[1770184865960,8.53039491,96.96,96.878,4.9808657]
[1770184866252,8.00370575,96.959,96.878,4.9808657]
[1770184866551,9.295,96.956,96.878,4.9808657]
[1770184868048,8.53039491,96.94,96.865,4.95540683]
[1770184868250,8.53039491,96.94,96.867,4.95540683]
[1770184868451,9.296,96.947,96.867,4.95540683]
[1770184868452,3.40990694,96.92,96.867,4.95540683]
[1770184869451,3.40990694,96.92,96.868,416.54668587]
[1770184870543,3.40990694,96.92,96.869,4.94668587]
[1770184872051,9.296,96.947,96.869,4.94668587]
[1770184872052,3.40990694,96.93,96.869,4.94668587]
[1770184872252,3.40990694,96.93,96.871,4.94623072]
[1770184873754,3.40990694,96.93,96.873,4.94736906]
[1770184874650,3.40990694,96.93,96.877,4.94736906]
[1770184874956,3.40990694,96.94,96.877,4.94736906]
[1770184875158,3.40990694,96.95,96.881,4.74365859]
[1770184876159,3.40990694,96.95,96.891,4.74365859]
[1770184877857,3.40990694,96.95,96.894,4.75003607]
[1770184878352,3.40990694,96.93,96.883,4.75003607]
[1770184878558,3.40990694,96.93,96.884,4.75003607]
[1770184879558,9.2943,96.964,96.884,4.75003607]
[1770184880058,3.40990694,96.95,96.891,4.74279128]
[1770184880752,3.40990694,96.95,96.896,4.74480081]
[1770184881363,3.40990694,96.94,96.898,4.74480081]
[1770184882562,9.2942,96.965,96.898,4.74480081]
[1770184882563,3.40990694,96.93,96.898,4.74480081]
[1770184883658,144.5469,96.986,96.893,411.6]
[1770184883858,3.40990694,96.93,96.893,411.6]
[1770184884963,3.40990694,96.93,96.893,416.33285569]
[1770184885262,3.40990694,96.94,96.894,4.73285569]
[1770184887361,3.40990694,96.95,96.894,4.73285569]
[1770184889564,3.40990694,96.96,96.901,4.76184355]
[1770184889765,3.40990694,96.96,96.903,4.76184355]
[1770184889966,3.40990694,96.92,96.866,4.76184355]
[1770184890163,3.40990694,96.92,96.868,4.76184355]
[1770184890766,3.40990694,96.93,96.871,4.76184355]
[1770184890968,3.40990694,96.94,96.872,411.6]
[1770184891165,3.40990694,96.94,96.873,4.90880854]
[1770184892768,144.5727,96.968,96.873,4.90880854]
[1770184892769,3.40990694,96.93,96.873,4.90880854]
[1770184892967,3.40990694,96.93,96.875,4.90880854]
[1770184893372,3.40990694,96.92,96.875,4.90880854]
[1770184896672,3.40990694,96.92,96.875,156.46880854]
[1770184896867,3.40990694,96.92,96.876,4.88079976]
[1770184897473,3.40990694,96.93,96.876,4.88079976]
[1770184900773,3.40990694,96.93,96.878,4.99227345]
[1770184901376,3.40990694,96.93,96.879,5.00038264]
[1770184904078,3.40990694,96.93,96.88,4.98869518]
[1770184904481,3.40933386,96.93,96.88,4.98869518]
[1770184908885,9.2952,96.954,96.88,4.98869518]
[1770184909088,3.40933386,96.94,96.881,4.99364099]
[1770184909287,3.40933386,96.93,96.881,4.99364099]
[1770184909688,3.40933386,96.94,96.881,4.99364099]
[1770184909892,3.40933386,96.95,96.891,4.99364099]
[1770184910789,3.40933386,96.94,96.891,4.99364099]
[1770184911184,3.40933386,96.94,96.873,9.303]
[1770184911185,3.40933386,96.94,96.893,5.00834799]
[1770184915693,3.40933386,96.95,96.893,5.00834799]
[1770184915994,3.40933386,96.94,96.893,5.00834799]
[1770184916598,3.40933386,96.93,96.893,5.00834799]
[1770184919401,3.40933386,96.94,96.893,5.00834799]
[1770184921494,18.62482578,97.005,96.893,5.00834799]
[1770184921495,3.40933386,96.95,96.893,5.00834799]
[1770184921792,3.40933386,96.96,96.893,5.00834799]
[1770184921996,3.40933386,96.96,96.895,4.97706487]
[1770184922299,3.40933386,96.96,96.894,411.62]
[1770184922300,9.2934,96.974,96.901,4.97706487]
[1770184922603,3.40933386,96.96,96.901,4.97706487]
[1770184923401,3.40933386,96.96,96.903,4.98593315]
[1770184923900,3.40933386,96.96,96.902,411.62]
[1770184923901,9.2893,97.016,96.93,4.98593315]
[1770184924200,3.40933386,96.97,96.931,4.98593315]
[1770184924693,3.40933386,96.96,96.926,411.6]
[1770184924896,3.40933386,96.95,96.926,411.6]
[1770184925401,3.40933386,96.95,96.903,411.6]
[1770184925599,3.40933386,96.95,96.904,5.19952337]
[1770184931703,3.40933386,96.96,96.904,5.19952337]
[1770184931904,3.40933386,96.95,96.904,5.19952337]
[1770184934405,3.40933386,96.96,96.904,5.19952337]
[1770184934707,9.33144396,97.017,96.921,5.24532605]
[1770184934906,3.40933386,96.98,96.923,5.24532605]
[1770184935107,3.40933386,96.99,96.924,411.56]
[1770184935308,3.40933386,96.99,96.925,5.24321861]
[1770184935505,3.40933386,97.0,96.931,5.24321861]
[1770184935706,3.40933386,97.0,96.9,144.6732]
[1770184935707,3.40933386,97.0,96.941,5.24321861]
[1770184935907,3.40933386,97.0,96.943,5.24321861]
[1770184938510,3.40933386,97.0,96.945,5.27805597]
[1770184939909,3.40933386,96.99,96.945,5.27805597]
[1770184941407,9.2884,97.026,96.947,5.28596353]
[1770184941605,3.40933386,97.0,96.947,5.28596353]
[1770184942212,144.4176,97.072,96.961,5.28596353]
[1770184942414,3.40933386,97.03,96.961,5.28596353]
[1770184942707,3.40933386,97.03,96.946,261.02]
[1770184942708,3.40933386,97.03,96.971,5.28596353]
[1770184943012,3.40933386,97.02,96.971,5.28596353]
[1770184943906,3.40933386,97.01,96.972,411.46]
[1770184944108,3.40933386,97.0,96.96,5.29352785]
[1770184944309,3.40933386,97.01,96.96,5.29352785]
[1770184944514,3.40933386,97.01,96.961,5.29352785]
[1770184944715,144.4478,97.052,96.961,5.29352785]
[1770184944716,3.40933386,97.0,96.961,5.29352785]
[1770184946414,3.40933386,97.01,96.961,5.29352785]
[1770184952619,3.40933386,96.99,96.931,5.38935033]
[1770184952819,3.40933386,96.99,96.943,5.38935033]
[1770184954712,3.40933386,97.0,96.943,5.38935033]
[1770184954916,144.4619,97.043,96.951,5.39026624]
[1770184954917,3.40933386,97.01,96.951,5.39026624]
[1770184955219,3.40933386,97.01,96.953,5.39026624]
[1770184956319,3.40933386,97.01,96.955,5.39505895]
[1770184957821,9.2886,97.024,96.96,3.40933386]
[1770184958020,3.40933386,97.03,96.961,5.40944062]
[1770184958324,3.40933386,97.02,96.961,5.40944062]
[1770184959723,3.40933386,97.03,96.971,5.41027482]
[1770184961222,3.40933386,97.03,96.972,5.40461112]
[1770184962122,144.4182,97.072,96.972,5.40461112]
[1770184962425,3.40933386,96.98,96.906,5.40461112]
[1770184962618,3.40933386,96.97,96.917,5.40461112]
[1770184963420,3.40933386,96.96,96.917,5.40461112]
[1770184964426,3.40706376,96.96,96.917,5.40461112]
[1770184966031,3.40706376,96.98,96.917,5.40461112]
[1770184966329,3.40706376,96.97,96.917,5.40461112]
[1770184966525,3.40706376,96.96,96.917,5.40461112]
[1770184966724,3.40706376,96.97,96.917,5.40461112]
[1770184968732,144.4949,97.021,96.921,5.34325705]
[1770184968933,3.40706376,96.99,96.928,5.34325705]
[1770184970229,3.40706376,96.99,96.936,5.34090106]
[1770184970634,3.40706376,96.98,96.936,5.34090106]
[1770184970935,3.40706376,96.99,96.936,5.34090106]
[1770184971529,3.40706376,96.99,96.907,144.6622]
[1770184971530,144.7029,96.881,96.808,9.99420248]
[1770184971838,3.40706376,96.82,96.751,9.99420248]
[1770184972029,144.726,96.866,96.751,9.99420248]
[1770184972030,3.40706376,96.8,96.751,9.99420248]
[1770184972336,8.54667697,96.82,96.751,9.99420248]
[1770184973131,9.3084,96.818,96.751,9.99420248]
[1770184973535,8.54667697,96.8,96.731,9.90925574]
[1770184973736,8.54667697,96.8,96.671,9.90925574]
[1770184973737,144.9212,96.735,96.671,9.90925574]
[1770184973935,144.8685,96.77,96.672,82.28]
[1770184974236,8.54667697,96.73,96.67,82.28]
[1770184974429,8.54667697,96.71,96.659,206.72]
[1770184974632,144.9146,96.74,96.659,206.72]
[1770184974939,153.46127697,96.74,96.659,206.72]
[1770184975135,8.54667697,96.72,96.659,206.72]
[1770184975338,8.54667697,96.72,96.601,145.1214]
[1770184975537,8.54667697,96.72,96.61,145.1068]
[1770184975939,8.54667697,96.72,96.611,9.70328584]
[1770184976434,9.3171,96.727,96.602,280.68]
[1770184976435,8.54667697,96.73,96.625,9.70341136]
[1770184976942,144.8696,96.77,96.635,9.70341136]
[1770184976943,8.54667697,96.75,96.635,9.70341136]
[1770184977144,144.9008,96.749,96.635,9.70341136]
[1770184977642,144.9305,96.729,96.635,9.70341136]
[1770184977943,8.54667697,96.73,96.635,9.70341136]
[1770184978941,8.54667697,96.73,96.636,289.5]
[1770184979132,8.54667697,96.73,96.637,9.77631533]
[1770184979536,8.54667697,96.73,96.632,145.0748]
[1770184979537,8.54667697,96.73,96.642,9.79437643]
[1770184980040,9.3133,96.766,96.642,9.79437643]
[1770184980041,8.54667697,96.75,96.642,9.79437643]
[1770184980641,144.8396,96.79,96.669,145.0193]
[1770184980940,144.8396,96.79,96.664,145.0261]
[1770184980941,144.8115,96.808,96.701,9.79437643]
[1770184981244,17.85577697,96.81,96.703,9.80839855]
[1770184981444,8.54667697,96.82,96.721,9.80839855]
[1770184982047,8.54667697,96.84,96.738,9.80839855]
[1770184982439,8.54667697,96.86,96.751,9.80839855]
[1770184983743,8.54667697,96.86,96.761,9.84548763]
[1770184983942,8.54667697,96.89,96.779,9.84548763]
[1770184985346,8.54667697,96.89,96.781,9.87612672]
[1770184985542,8.54667697,96.89,96.79,8.54667697]
[1770184985741,8.54667697,96.89,96.792,9.87612672]
[1770184985944,8.54667697,96.89,96.791,412.06]
[1770184985945,8.54667697,96.89,96.798,9.87612672]
[1770184986146,8.54667697,96.91,96.811,9.87612672]
[1770184987145,8.54667697,96.94,96.831,9.88195734]
[1770184987351,8.54667697,96.94,96.834,9.88195734]
[1770184987545,8.54667697,96.92,96.834,9.88195734]
[1770184988239,144.6053,96.946,96.834,9.88195734]
[1770184988440,8.54667697,96.95,96.834,9.88195734]
[1770184988441,144.6242,96.934,96.834,9.88195734]
[1770184988639,8.54667697,96.92,96.834,9.88195734]
[1770184988838,8.54667697,96.92,96.836,9.88195734]
[1770184989039,8.54667697,96.94,96.836,9.88195734]
[1770184990350,8.54667697,96.92,96.837,411.94]
[1770184990550,8.54667697,96.92,96.838,9.87480037]
[1770184992547,9.2982,96.924,96.838,9.87480037]
[1770184992548,8.54667697,96.9,96.838,9.87480037]
[1770184992748,8.54667697,96.9,96.839,305.1]
[1770184993247,8.54667697,96.9,96.84,411.9]
[1770184993442,8.54667697,96.9,96.838,9.87480037]
[1770184993443,8.54667697,96.9,96.841,411.88]
[1770184993950,8.54667697,96.9,96.838,9.87480037]
[1770184993951,8.54667697,96.9,96.842,411.88]
[1770184995044,8.54667697,96.9,96.843,411.86]
[1770184999754,9.3006,96.898,96.843,411.86]
[1770185001951,9.3006,96.898,96.844,411.84]
[1770185002357,9.3006,96.898,96.845,411.82]
[1770185002858,9.3006,96.898,96.846,9.87391291]
[1770185003050,9.3006,96.898,96.782,31.0]
[1770185003051,144.5798,96.964,96.85,9.86882457]
[1770185003252,8.54667697,96.97,96.861,9.86882457]
[1770185003456,144.5511,96.983,96.881,9.86882457]
[1770185003857,9.294,96.967,96.881,9.86882457]
[1770185004557,9.2926,96.982,96.885,9.86882457]
[1770185004860,144.5593,96.977,96.887,9.86882457]
[1770185005158,144.5743,96.967,96.887,9.86882457]
[1770185005359,144.5743,96.967,96.889,9.8760017]
[1770185006551,9.2958,96.948,96.889,9.8760017]
[1770185006749,9.2958,96.948,96.891,9.8760017]
[1770185008163,9.2958,96.948,96.892,411.74]
[1770185008963,144.6203,96.936,96.869,9.88048428]
[1770185009164,144.6203,96.936,96.871,9.87131276]
[1770185009460,144.6203,96.936,96.872,195.83131276]
[1770185009861,8.54667697,96.93,96.872,195.83131276]
[1770185010660,9.2982,96.923,96.872,195.83131276]
[1770185012562,8.54667697,96.95,96.873,9.84072825]
[1770185013460,8.54667697,96.95,96.875,9.83890969]
[1770185013759,9.2959,96.948,96.875,9.83890969]
[1770185014362,9.2947,96.96,96.877,9.83890969]
[1770185016358,9.2957,96.95,96.877,9.83890969]
[1770185016964,9.2947,96.961,96.877,9.83890969]
[1770185018067,9.2936,96.972,96.881,9.85330658]
[1770185018266,9.2936,96.972,96.883,9.85330658]
[1770185019663,8.54667697,96.99,96.88,8.54667697]
[1770185019664,9.2922,96.987,96.884,421.47203991]
[1770185019971,8.54667697,96.99,96.901,9.85203991]
[1770185020168,144.5045,97.014,96.901,9.85203991]
[1770185020366,8.54667697,97.01,96.901,9.85203991]
[1770185021766,9.2911,96.998,96.905,9.85494369]
[1770185021970,144.4713,97.036,96.921,9.85494369]
[1770185022264,9.2858,97.053,96.961,9.85494369]
[1770185022567,9.2858,97.053,96.963,9.85494369]
[1770185023273,9.2869,97.042,96.963,9.85494369]
[1770185023466,8.54667697,97.04,96.963,9.85494369]
[1770185024269,9.2871,97.039,96.963,9.85494369]
[1770185025472,9.2871,97.039,96.965,9.87129001]
[1770185028971,144.4107,97.077,96.966,411.42]
[1770185029169,8.50588953,97.07,96.967,9.87057445]
[1770185030278,8.50588953,97.07,96.969,9.87405459]
[1770185030478,144.3508,97.117,96.996,9.87405459]
[1770185030672,8.50588953,97.11,97.013,9.89482995]
[1770185030870,8.50588953,97.11,97.027,9.89482995]
[1770185031270,8.50588953,97.13,97.027,9.89482995]
[1770185032778,9.2786,97.129,97.032,9.89482995]
[1770185036380,9.2786,97.129,97.04,9.89907289]
[1770185036878,8.50588953,97.11,97.041,411.18]
[1770185037674,8.50588953,97.11,97.042,9.89994752]
[1770185040585,9.2804,97.109,97.044,9.90126236]
[1770185040786,8.50588953,97.09,97.026,9.90126236]
[1770185041487,8.50588953,97.09,97.027,411.08]
[1770185041681,9.2828,97.085,97.027,411.08]
[1770185043489,8.50588953,97.07,97.027,411.08]
[1770185044581,144.3787,97.099,97.027,411.08]
[1770185044784,8.50588953,97.1,97.028,9.89346504]
[1770185045589,144.3176,97.14,97.028,9.89346504]
[1770185045590,144.306,97.148,97.03,8.50588953]
[1770185045790,144.3207,97.138,97.031,9.896314]
[1770185045991,8.50588953,97.12,97.031,9.896314]
[1770185047287,8.50588953,97.12,97.033,9.91100865]
[1770185048786,8.49177472,97.12,97.033,9.91100865]
[1770185049295,9.282,97.092,97.033,9.91100865]
[1770185049593,144.3484,97.119,97.033,9.91100865]
[1770185049887,144.3532,97.116,97.033,9.91100865]
[1770185050083,144.3551,97.114,97.033,9.91100865]
[1770185050489,144.3551,97.114,97.034,387.24]
[1770185050687,9.2814,97.099,97.035,9.90818389]
[1770185051291,144.3491,97.119,97.036,410.98]
[1770185051498,144.3491,97.119,97.037,9.87325001]
[1770185051787,8.49177472,97.12,97.037,9.87325001]
[1770185051788,9.2802,97.112,97.037,9.87325001]
[1770185052393,144.3361,97.127,97.039,9.87325001]
[1770185052394,8.49177472,97.1,97.039,9.87325001]
[1770185053593,8.49177472,97.08,97.022,9.87086559]
[1770185053798,8.49177472,97.08,97.023,184.24]
[1770185054297,8.49177472,97.08,97.022,9.87086559]
[1770185054493,8.49177472,97.08,97.023,184.22]
[1770185054698,9.2834,97.078,97.023,184.22]
[1770185059897,9.2834,97.078,97.024,9.8759474]
[1770185060102,8.49177472,97.08,97.024,9.8759474]
[1770185062104,9.2834,97.078,97.024,9.8759474]
[1770185062307,9.2834,97.078,97.025,91.8]
[1770185062809,9.2834,97.078,97.026,9.87681664]
[1770185063206,9.2845,97.067,97.026,9.87681664]
[1770185063508,9.2845,97.067,97.027,82.2]
[1770185063910,9.2845,97.067,97.026,9.87681664]
[1770185064107,9.2835,97.077,97.026,9.87681664]
[1770185064306,144.3722,97.103,97.026,9.87681664]
[1770185064307,8.49177472,97.09,97.026,9.87681664]
[1770185064910,9.2833,97.079,97.026,9.87681664]
[1770185065508,9.2833,97.079,97.028,9.87144063]
[1770185067614,9.2833,97.079,97.029,92.0607193]
[1770185068015,9.2833,97.079,97.03,9.8607193]
[1770185068214,8.49177472,97.09,97.03,9.8607193]
[1770185068215,9.2845,97.066,97.03,9.8607193]
[1770185068415,144.398,97.086,97.03,9.8607193]
[1770185068615,8.56011276,97.085,97.03,9.8607193]
[1770185068815,8.56011276,97.084,97.03,9.8607193]
[1770185069017,8.49177472,97.09,97.03,9.8607193]
[1770185069212,8.56048985,97.089,97.03,9.8607193]
[1770185069517,8.56048985,97.088,97.03,9.8607193]
[1770185069714,9.2826,97.086,97.03,9.8607193]
[1770185069920,8.49177472,97.09,97.032,9.86323838]
[1770185070115,144.2604,97.178,97.081,9.86323838]
[1770185070314,8.49177472,97.15,97.081,9.86323838]
[1770185070517,8.49177472,97.17,97.081,9.86323838]
[1770185070718,8.56623989,97.169,97.081,9.86323838]
[1770185070919,8.49177472,97.17,97.081,9.86323838]
[1770185071115,8.56875335,97.169,97.081,9.86323838]
[1770185071316,8.49177472,97.17,97.081,9.86323838]
[1770185071820,8.49177472,97.19,97.081,9.86323838]
[1770185072122,8.57108188,97.189,97.081,9.86323838]
[1770185072415,8.57108188,97.188,97.091,9.9049046]
[1770185072617,8.49177472,97.21,97.111,9.9049046]
[1770185072814,8.56770832,97.209,97.111,9.9049046]
[1770185073122,8.56770832,97.208,97.113,9.9049046]
[1770185073319,8.56770832,97.207,97.113,9.9049046]
[1770185073519,8.56770832,97.206,97.113,9.9049046]
[1770185073720,8.56770832,97.205,97.113,9.9049046]
[1770185073917,8.49177472,97.19,97.113,9.9049046]
[1770185074116,8.56770832,97.189,97.113,9.9049046]
[1770185074417,8.56770832,97.188,97.113,9.9049046]
[1770185074616,8.49177472,97.17,97.113,9.9049046]
[1770185076522,8.49177472,97.15,97.081,9.96393666]
[1770185082226,8.49177472,97.17,97.081,9.96393666]
[1770185083724,8.49177472,97.17,97.083,9.96760419]
[1770185086524,8.48327076,97.17,97.083,9.96760419]
[1770185087731,8.48327076,97.17,97.085,9.97844728]
[1770185088330,8.48327076,97.17,97.087,9.97844728]
[1770185092626,8.48327076,97.18,97.088,153.6754]
[1770185092826,8.48327076,97.19,97.098,9.98112296]
[1770185093634,8.48327076,97.21,97.115,9.98283282]
[1770185093835,8.48327076,97.23,97.121,9.98283282]
[1770185094024,8.48327076,97.23,97.123,9.98283282]
[1770185094728,8.48327076,97.23,97.124,9.98283282]
[1770185095635,8.48327076,97.23,97.129,9.98491309]
[1770185096526,8.48327076,97.25,97.15,9.98445841]
[1770185096729,8.48327076,97.25,97.152,9.98445841]
[1770185098231,8.48327076,97.23,97.152,9.98445841]
[1770185100634,8.48327076,97.25,97.158,9.98302147]
[1770185100836,8.48327076,97.25,97.16,9.98302147]
[1770185101029,8.48327076,97.29,97.189,9.98176023]
[1770185101233,8.48327076,97.29,97.18,8.48327076]
[1770185101234,8.48327076,97.29,97.202,9.98176023]
[1770185101741,8.48327076,97.29,97.211,9.98176023]
[1770185101945,8.48327076,97.25,97.193,9.98176023]
[1770185102233,8.48327076,97.25,97.175,9.98176023]
[1770185103537,144.1118,97.278,97.177,9.95381984]
[1770185103538,8.48327076,97.26,97.177,9.95381984]
[1770185105640,8.48327076,97.24,97.177,9.95381984]
[1770185105934,8.48327076,97.24,97.161,9.93328427]
[1770185106140,9.2683,97.237,97.161,9.93328427]
[1770185107039,144.1571,97.248,97.161,9.93328427]
[1770185107040,8.48327076,97.22,97.161,9.93328427]
[1770185108635,9.2701,97.217,97.152,410.46]
[1770185108942,8.48327076,97.2,97.125,9.94785537]
[1770185109341,9.2719,97.199,97.125,9.94785537]
[1770185109641,8.48327076,97.18,97.125,9.94785537]
[1770185111843,9.2729,97.188,97.125,9.94785537]
[1770185112539,8.48327076,97.2,97.126,10.01960373]
[1770185113749,9.272,97.198,97.126,10.01960373]
[1770185118438,3.39134005,97.18,97.126,10.01960373]
[1770185122446,9.272,97.198,97.126,10.01960373]
[1770185126147,576.6298,97.248,97.093,144.385]
[1770185126148,8.47852677,97.24,97.135,10.06338945]
[1770185126338,8.47852677,97.24,97.137,10.06338945]
[1770185126543,9.2684,97.235,97.148,10.06338945]
[1770185126941,8.47852677,97.24,97.154,10.06338945]
[1770185127139,8.47852677,97.24,97.157,10.06338945]
[1770185127348,144.0772,97.302,97.187,10.09640863]
[1770185127643,144.0772,97.302,97.182,144.2532]
[1770185127644,8.47852677,97.27,97.189,10.09640863]
[1770185129048,9.2639,97.282,97.189,10.09640863]
[1770185129049,8.47852677,97.25,97.189,10.09640863]
[1770185129349,8.47852677,97.27,97.189,10.09640863]
[1770185129550,144.1261,97.269,97.189,10.09640863]
[1770185130550,9.2663,97.257,97.19,10.06675133]
[1770185130747,8.47852677,97.25,97.19,10.06675133]
[1770185131450,8.47852677,97.27,97.19,10.06675133]
[1770185131650,9.2655,97.265,97.19,10.06675133]
[1770185133446,8.47852677,97.25,97.19,10.06675133]
[1770185134551,8.47852677,97.27,97.19,10.06675133]
[1770185136254,9.2652,97.269,97.19,10.06675133]
[1770185138354,9.2652,97.269,97.192,10.4184416]
[1770185139953,9.2639,97.283,97.192,10.4184416]
[1770185140356,8.47852677,97.27,97.192,10.4184416]
[1770185140857,9.2652,97.269,97.192,10.4184416]
[1770185141653,9.2652,97.269,97.194,10.61498503]
[1770185143461,8.47852677,97.27,97.194,10.61498503]
[1770185143659,9.2642,97.279,97.194,10.61498503]
[1770185144253,9.2652,97.269,97.194,10.61498503]
[1770185144458,3.38662606,97.25,97.196,10.52375342]
[1770185145762,3.38662606,97.24,97.196,10.52375342]
[1770185145962,3.38662606,97.23,97.196,10.52375342]
[1770185146258,3.38662606,97.22,97.196,10.52375342]
[1770185146466,8.47113639,97.24,97.175,10.50817962]
[1770185146656,8.47113639,97.26,97.175,10.50817962]
[1770185146855,8.47113639,97.27,97.175,10.50817962]
[1770185147057,9.2665,97.255,97.175,10.50817962]
[1770185148063,9.2665,97.255,97.177,10.47024119]
[1770185153571,9.2673,97.247,97.177,10.47024119]
[1770185154762,8.4687805,97.27,97.18,10.45886381]
[1770185155367,8.4687805,97.27,97.182,10.45187994]
[1770185155670,17.7338805,97.27,97.184,10.45187994]
[1770185155866,144.0425,97.325,97.201,10.45187994]
[1770185156166,8.4687805,97.28,97.204,10.45187994]
[1770185156671,144.0554,97.317,97.204,10.45187994]
[1770185156966,8.4687805,97.3,97.204,10.45187994]
[1770185157561,9.2626,97.297,97.209,9.2708]
[1770185157766,9.2626,97.297,97.21,10.37696355]
[1770185158269,9.36534734,97.368,97.212,10.37696355]
[1770185158475,143.9846,97.364,97.293,10.37696355]
[1770185158669,8.4687805,97.34,97.294,79.15814226]
[1770185158870,8.4687805,97.32,97.276,10.37696355]
[1770185159064,8.4687805,97.32,97.256,10.37696355]
[1770185160868,8.4687805,97.34,97.256,10.37696355]
[1770185161074,8.4687805,97.32,97.256,10.37696355]
[1770185161270,8.4687805,97.32,97.258,10.35821559]
[1770185162573,9.2587,97.337,97.258,10.35821559]
[1770185162772,8.4687805,97.33,97.258,10.35821559]
[1770185165076,144.013,97.345,97.257,216.4]
[1770185165077,8.4687805,97.31,97.257,216.4]
[1770185165279,8.4687805,97.31,97.246,327.5]
[1770185165483,8.4687805,97.29,97.241,10.33955306]
[1770185165884,8.4687805,97.25,97.202,10.33955306]
[1770185166180,144.1095,97.28,97.202,10.33955306]
[1770185166181,8.4687805,97.26,97.202,10.33955306]
[1770185166681,8.4687805,97.27,97.202,10.33955306]
[1770185166881,8.4687805,97.27,97.204,10.33955306]
[1770185167082,9.2656,97.264,97.204,10.33955306]
[1770185167276,8.4687805,97.25,97.204,10.33955306]
[1770185168283,9.2671,97.249,97.201,410.12]
[1770185168479,9.2671,97.249,97.189,410.14]
[1770185168684,144.1196,97.273,97.186,10.27250616]
[1770185168985,153.3975,97.265,97.188,10.27250616]
[1770185171185,9.2671,97.248,97.188,10.27250616]
[1770185171790,8.4687805,97.25,97.188,10.27250616]
[1770185172298,8.4687805,97.27,97.188,10.27250616]
[1770185172590,144.0729,97.305,97.188,10.27250616]
[1770185172591,8.4687805,97.29,97.188,10.27250616]
[1770185173889,8.4687805,97.29,97.181,10.29]
[1770185173890,9.2633,97.289,97.191,10.2704783]
[1770185174192,9.2633,97.289,97.193,10.2704783]
[1770185174392,9.2633,97.289,97.195,10.2704783]
[1770185175183,8.4687805,97.3,97.195,10.2704783]
[1770185175384,8.4687805,97.32,97.211,144.2096]
[1770185175590,9.36534734,97.383,97.261,10.28753205]
[1770185175796,8.4687805,97.38,97.281,10.28753205]
[1770185175993,8.55297021,97.379,97.281,10.28753205]
[1770185176187,8.55297021,97.378,97.281,10.28753205]
[1770185176395,8.54349009,97.377,97.281,10.28753205]
[1770185176591,9.2551,97.375,97.281,10.28753205]
[1770185176789,8.54349009,97.374,97.281,10.28753205]
[1770185177092,8.54349009,97.373,97.283,10.28753205]
[1770185177290,8.4687805,97.38,97.283,10.28753205]
[1770185177491,8.4687805,97.38,97.285,10.33899098]
[1770185177696,8.53553661,97.379,97.285,10.33899098]
[1770185177998,8.4687805,97.38,97.285,10.33899098]
[1770185179293,9.252,97.408,97.293,10.34642306]
[1770185179494,8.4687805,97.4,97.301,10.34642306]
[1770185180397,8.4687805,97.38,97.301,10.34642306]
[1770185180994,8.4687805,97.38,97.271,9.2649]
[1770185180995,8.4687805,97.38,97.303,10.3467591]
[1770185182992,8.4687805,97.38,97.305,10.36287676]
[1770185183497,8.4687805,97.39,97.305,10.36287676]
[1770185184202,9.2541,97.385,97.305,10.36287676]
[1770185185095,9.2554,97.371,97.305,10.36287676]
[1770185185294,8.4687805,97.37,97.298,265.66]
[1770185185690,8.4687805,97.35,97.298,265.66]
[1770185185993,8.4687805,97.35,97.287,10.26823824]
[1770185186499,144.0076,97.349,97.287,10.26823824]
[1770185187294,8.4687805,97.35,97.287,10.26823824]
[1770185187602,8.4687805,97.35,97.288,10.28801196]
[1770185188095,9.2566,97.36,97.288,10.28801196]
[1770185188295,9.2566,97.36,97.29,10.31316552]
[1770185189905,9.2578,97.347,97.289,409.9]
[1770185190295,9.2578,97.347,97.289,420.26421751]
[1770185190501,8.4687805,97.35,97.29,10.36421751]
[1770185190706,8.4687805,97.35,97.291,420.26421751]
[1770185191001,8.4687805,97.37,97.292,10.36421751]